bitfinex/quotes_ETHUSD_20250511
["timestamp","ask_amount","ask_price","bid_price","bid_amount"]
[1746945567156,3.94952939,2532.0,2531.3,0.0629]
[1746945567661,3.94963479,2531.9,2531.3,0.0629]
[1746945570915,0.55,2532.2,2531.3,0.0629]
[1746945571119,3.94999633,2531.7,2531.3,0.0629]
[1746945572156,3.94983085,2531.8,2531.3,0.0629]
[1746945572454,3.94976116,2531.8,2531.3,0.0629]
[1746945572638,3.95012718,2531.6,2531.3,0.0629]
[1746945572838,3.94999797,2531.7,2531.3,0.0629]
[1746945573066,3.95067597,2531.3,2530.5,0.0629]
[1746945573357,3.95065371,2531.3,2530.5,0.0629]
[1746945573533,3.9504576,2531.4,2530.5,0.0629]
[1746945574320,11.95056439,2531.3,2530.5,0.0629]
[1746945575355,8.0,2531.3,2530.5,0.0629]
[1746945575556,0.5370293,2531.3,2530.5,0.35549]
[1746945575718,8.0,2531.1,2530.5,0.35549]
[1746945576062,2.863,2531.6,2530.6,0.0629]
[1746945576260,8.0,2531.5,2530.7,0.03951315]
[1746945576555,8.0,2531.5,2530.8,0.0629]
[1746945577547,2.863,2531.6,2530.8,0.0629]
[1746945577919,6.8130978,2531.6,2530.8,0.0629]
[1746945578130,2.863,2531.6,2530.8,0.0629]
[1746945578359,3.95049118,2531.4,2530.8,0.0629]
[1746945579362,3.95046151,2531.4,2530.8,0.0629]
[1746945580237,3.95029765,2531.5,2530.8,0.0629]
[1746945580439,3.95044729,2531.4,2530.8,0.0629]
[1746945580949,3.95029341,2531.5,2530.8,0.0629]
[1746945581154,3.95044022,2531.4,2530.8,0.0629]
[1746945581876,3.9503015,2531.5,2530.8,0.0629]
[1746945582033,3.95039105,2531.4,2530.8,0.0629]
[1746945582630,2.863,2531.6,2530.8,0.0629]
[1746945584866,3.95034609,2531.5,2530.8,0.0629]
[1746945585162,3.95042514,2531.4,2530.8,0.0629]
[1746945585365,3.95036094,2531.5,2530.8,0.0629]
[1746945585544,3.95047933,2531.4,2530.8,0.0629]
[1746945586050,6.81310325,2531.6,2530.8,0.0629]
[1746945586051,3.95031621,2531.5,2530.8,0.0629]
[1746945586235,6.81311871,2531.6,2530.8,0.0629]
[1746945586434,3.95025887,2531.5,2530.8,0.0629]
[1746945587943,9.6381436,2531.6,2530.8,0.0629]
[1746945588143,6.8131436,2531.6,2530.8,0.0629]
[1746945588341,2.863,2531.6,2530.8,0.0629]
[1746945588546,8.833,2531.8,2530.8,0.0629]
[1746945588547,11.94987175,2531.8,2530.8,0.0629]
[1746945589568,8.0,2531.8,2530.8,0.0629]
[1746945591980,11.94981876,2531.8,2530.8,0.0629]
[1746945592336,8.0,2531.6,2530.8,0.0629]
[1746945592548,8.0,2531.7,2530.8,0.0629]
[1746945592748,11.94999869,2531.7,2530.8,0.0629]
[1746945593374,3.95009656,2531.6,2530.8,0.0629]
[1746945593575,11.94997395,2531.7,2530.8,0.0629]
[1746945594195,3.9500711,2531.6,2530.8,0.0629]
[1746945594341,4.16671216,2531.6,2530.8,0.0629]
[1746945594667,8.0,2531.4,2530.8,0.0629]
[1746945594838,0.21664106,2531.6,2530.8,0.0629]
[1746945595340,0.21664106,2531.5,2530.8,0.0629]
[1746945595751,8.0,2531.4,2530.8,0.0629]
[1746945595978,3.95104627,2531.0,2530.8,0.0629]
[1746945596188,8.0,2531.2,2530.0,0.0629]
[1746945596389,8.0,2530.8,2530.0,0.0629]
[1746945596543,3.95105078,2531.0,2530.0,0.0629]
[1746945596740,8.0,2530.9,2530.0,0.63549]
[1746945596985,3.95117507,2530.9,2530.0,0.63549]
[1746945597351,3.95106586,2531.0,2530.0,0.63549]
[1746945597744,3.95085641,2531.1,2530.0,0.63549]
[1746945597993,3.95085641,2531.1,2530.2,0.0629]
[1746945598155,8.0,2531.6,2530.2,0.0629]
[1746945598474,3.95056719,2531.3,2530.2,0.0629]
[1746945598690,8.0,2531.1,2530.3,2.807]
[1746945598891,8.0,2531.2,2530.3,0.0629]
[1746945599044,8.55,2531.6,2530.3,0.0629]
[1746945599248,6.4862,2531.8,2530.4,0.0629]
[1746945599481,8.0,2531.7,2530.4,0.0629]
[1746945599794,8.0,2531.6,2530.4,0.0629]
[1746945599959,3.95024847,2531.5,2530.4,0.0629]
[1746945600347,3.95010101,2531.6,2530.4,0.0629]
[1746945600843,11.94995692,2531.7,2530.4,0.0629]
[1746945601049,3.9500711,2531.6,2530.4,0.0629]
[1746945601361,8.0,2531.3,2530.4,0.0629]
[1746945601545,0.21677483,2531.5,2530.4,0.0629]
[1746945601747,8.0,2531.4,2530.4,0.0629]
[1746945602058,11.95105744,2531.0,2530.4,0.0629]
[1746945602384,8.0,2531.1,2530.4,0.0629]
[1746945602945,8.0,2530.8,2530.4,0.0629]
[1746945603246,3.95107925,2531.0,2530.4,0.0629]
[1746945605185,11.95090127,2531.1,2530.4,0.0629]
[1746945605387,3.95103767,2531.0,2530.4,0.0629]
[1746945605748,11.95090914,2531.1,2530.4,0.0629]
[1746945606388,8.0,2531.1,2530.4,0.0629]
[1746945607252,11.95090843,2531.1,2530.4,0.0629]
[1746945607453,3.95101228,2531.0,2530.4,0.0629]
[1746945608097,11.95088606,2531.1,2530.4,0.0629]
[1746945608648,8.0,2531.0,2530.4,0.0629]
[1746945608885,8.0,2530.8,2529.6,0.0629]
[1746945609072,11.95182427,2530.5,2529.6,0.49553323]
[1746945609586,11.95182427,2530.5,2529.6,0.43263323]
[1746945609892,4.50108219,2531.0,2529.8,0.0629]
[1746945610187,2.805,2531.3,2530.0,0.0629]
[1746945610487,6.75541375,2531.4,2530.2,0.0629]
[1746945610780,8.0,2531.3,2530.2,0.0629]
[1746945611144,2.805,2531.4,2530.4,0.0629]
[1746945611349,8.0,2531.3,2530.4,0.0629]
[1746945611757,2.805,2531.4,2530.5,0.03951267]
[1746945611987,8.0,2531.6,2530.6,0.0629]
[1746945612370,11.95011077,2531.6,2530.6,0.0629]
[1746945612573,3.95024715,2531.5,2530.6,0.0629]
[1746945612763,3.95064505,2531.3,2530.6,0.0629]
[1746945612964,11.95027907,2531.5,2530.6,0.0629]
[1746945614501,0.55,2531.5,2530.6,0.0629]
[1746945614798,3.95108198,2531.0,2530.6,0.0629]
[1746945615489,6.75592385,2531.1,2530.6,0.0629]
[1746945615690,3.95103331,2531.0,2530.6,0.0629]
[1746945615869,6.75587973,2531.1,2530.6,0.0629]
[1746945616064,3.9514777,2530.7,2529.9,0.0629]
[1746945616304,3.95166634,2530.6,2529.9,0.62799]
[1746945616686,3.95179207,2530.5,2529.9,0.62799]
[1746945616860,3.95195802,2530.4,2529.9,0.62799]
[1746945617056,3.95203724,2530.4,2529.9,0.0629]
[1746945618167,3.95186275,2530.5,2529.9,0.0629]
[1746945618373,0.55,2530.5,2529.9,0.0629]
[1746945618583,3.95283561,2529.9,2529.5,0.0629]
[1746945619099,3.95366306,2529.3,2529.2,0.0679]
[1746945619428,3.95361995,2529.4,2529.2,0.005]
[1746945619771,3.95366306,2529.3,2529.2,0.005]
[1746945619971,3.95356986,2529.4,2529.2,0.005]
[1746945620295,7.51636306,2529.3,2529.2,0.005]
[1746945620467,8.4480795,2529.3,2529.2,0.005]
[1746945620665,17.21380997,2529.3,2529.2,0.005]
[1746945620899,0.55,2528.9,2527.9,0.0629]
[1746945621102,3.95506969,2528.5,2527.9,0.0629]
[1746945621299,6.75088133,2528.6,2527.9,0.0629]
[1746945621623,7.52357821,2529.2,2527.9,0.0629]
[1746945621918,2.806,2529.1,2527.9,0.0629]
[1746945622083,1.3826,2529.0,2527.9,0.0629]
[1746945622275,5.3367681,2529.0,2527.9,0.0629]
[1746945622670,1.3826,2529.0,2527.9,0.0629]
[1746945622983,8.1427544,2529.0,2527.9,0.0629]
[1746945623204,4.1886,2529.0,2527.9,0.0629]
[1746945623577,8.14274333,2529.0,2527.9,0.0629]
[1746945623778,3.56969857,2528.8,2527.9,0.0629]
[1746945624074,3.95491058,2528.6,2527.9,0.0629]
[1746945624297,0.39549106,2528.5,2527.9,0.0629]
[1746945624509,3.95508082,2528.4,2527.9,0.0629]
[1746945624818,3.95547902,2528.2,2527.9,0.0629]
[1746945625313,3.95584227,2528.0,2527.8,0.005]
[1746945626016,3.95555793,2528.1,2527.8,0.005]
[1746945626201,3.95585268,2527.9,2527.8,0.005]
[1746945626372,0.39558527,2527.9,2527.8,0.005]
[1746945626774,0.8302,2528.5,2527.8,0.005]
[1746945626980,3.95462601,2528.7,2527.9,0.0629]
[1746945627197,3.95443986,2528.9,2527.9,0.0629]
[1746945627416,3.95428842,2528.9,2527.9,0.0629]
[1746945627579,14.224,2529.2,2528.0,0.03955705]
[1746945627781,17.031,2529.2,2528.1,0.0629]
[1746945627983,6.76077693,2529.3,2528.1,0.0629]
[1746945628585,3.95382179,2529.2,2528.1,0.0629]
[1746945629116,3.95372923,2529.3,2528.1,2.8699]
[1746945629327,3.95372923,2529.3,2528.3,0.0629]
[1746945629619,3.5619,2529.7,2528.4,0.0629]
[1746945629800,3.95375221,2529.3,2528.6,8.0]
[1746945629998,3.95407549,2529.1,2528.5,2.801]
[1746945630309,3.9536041,2529.4,2528.5,2.801]
[1746945630638,0.79069996,2529.3,2528.4,0.0629]
[1746945630817,3.95391024,2529.2,2528.4,0.0629]
[1746945631219,3.95471335,2528.7,2528.4,0.0629]
[1746945631419,3.95438554,2528.9,2528.4,0.0629]
[1746945631628,3.95419036,2529.0,2528.4,0.0629]
[1746945631788,3.95454024,2528.8,2528.4,0.0629]
[1746945631992,0.54419258,2528.7,2528.4,0.0629]
[1746945632325,0.14873856,2528.7,2528.4,0.0629]
[1746945632826,0.14663513,2528.6,2528.4,0.0629]
[1746945633025,3.95381938,2529.2,2528.4,0.0629]
[1746945633226,4.10128664,2529.1,2528.4,0.0629]
[1746945633728,0.14722318,2529.1,2528.4,0.0629]
[1746945633910,0.4424455,2529.1,2528.4,0.0629]
[1746945634434,3.9541527,2529.0,2528.4,0.0629]
[1746945634732,0.14708712,2528.9,2528.4,0.0629]
[1746945635098,0.29522232,2529.1,2528.4,0.0629]
[1746945635293,0.14693055,2528.8,2528.5,8.0]
[1746945635494,15.0224,2530.1,2528.6,0.0629]
[1746945635803,3.95282938,2529.9,2528.8,0.0629]
[1746945636000,0.14849566,2529.8,2528.8,0.0629]
[1746945636200,4.10141817,2529.8,2528.8,0.0629]
[1746945636400,0.80542476,2529.7,2528.8,0.0629]
[1746945636695,0.7944,2529.5,2528.8,0.0629]
[1746945636900,3.95397511,2529.2,2528.8,0.0629]
[1746945637432,4.10207744,2529.1,2528.8,0.0629]
[1746945637738,9.45125268,2527.9,2527.8,0.005]
[1746945637938,0.7944,2527.0,2526.0,0.0629]
[1746945638186,3.95777922,2526.7,2526.0,0.0629]
[1746945638342,3.62114464,2526.5,2524.8,0.0629]
[1746945638639,3.95924197,2525.8,2524.8,0.0629]
[1746945638802,0.14088416,2525.7,2524.8,0.0629]
[1746945638997,0.7824,2525.5,2524.7,8.18769589]
[1746945639301,0.13692041,2525.4,2524.8,0.0629]
[1746945639500,0.13692041,2525.4,2524.8,0.92756838]
[1746945639700,3.96005708,2525.3,2524.8,0.0629]
[1746945640001,0.12071249,2525.2,2524.8,0.0629]
[1746945640221,3.62114464,2525.5,2524.8,0.0629]
[1746945640416,0.12102651,2525.4,2524.8,0.0629]
[1746945640735,0.7824,2525.7,2524.8,0.0629]
[1746945640940,0.11864481,2525.3,2524.8,0.0629]
[1746945641142,3.99338464,2525.6,2524.8,0.0629]
[1746945641308,0.1184878,2525.2,2524.8,0.0629]
[1746945641508,3.99338464,2525.6,2524.8,0.0629]
[1746945641709,0.11833077,2525.1,2524.8,0.0629]
[1746945641940,0.37224,2525.6,2524.8,0.0629]
[1746945642143,0.11817373,2525.0,2524.8,0.0629]
[1746945642458,0.11801668,2524.9,2524.4,0.0629]
[1746945642748,0.11801668,2524.9,2524.3,8.039606]
[1746945642749,2.941,2525.1,2524.2,5.51136364]
[1746945643056,0.67414,2525.0,2524.3,0.0629]
[1746945643253,7.58849383,2525.6,2524.3,0.0629]
[1746945643254,0.11819474,2524.9,2524.3,0.0629]
[1746945643451,5.0407718,2525.7,2524.3,0.0629]
[1746945643616,0.1189377,2525.6,2524.3,8.0629]
[1746945643816,0.55,2525.5,2524.3,0.0629]
[1746945644022,3.96007329,2525.3,2524.3,0.0629]
[1746945644222,6.51109038,2525.2,2524.2,5.51136364]
[1746945644757,0.7747,2525.0,2524.2,5.51136364]
[1746945645162,0.11774957,2524.9,2524.2,5.51136364]
[1746945646461,3.96070975,2524.8,2524.2,5.51136364]
[1746945646621,0.11743543,2524.7,2524.2,5.51136364]
[1746945646821,6.129,2524.6,2524.2,5.51136364]
[1746945647054,0.11633753,2524.5,2524.2,5.51136364]
[1746945647353,3.064,2525.0,2524.3,0.0629]
[1746945647562,0.11605571,2524.4,2524.3,0.0629]
[1746945647761,3.62891687,2525.8,2524.3,0.0629]
[1746945647762,3.36406783,2525.7,2524.3,0.10251148]
[1746945648053,0.10859575,2525.6,2524.3,8.10251148]
[1746945648218,0.81072533,2525.6,2524.4,1.66938751]
[1746945648416,3.065,2526.0,2524.5,0.0629]
[1746945648721,0.10890966,2525.8,2524.5,0.0629]
[1746945651662,0.10890966,2525.8,2524.5,11.16950545]
[1746945651866,0.10890966,2525.8,2524.5,11.1299]
[1746945652028,0.10890966,2525.8,2524.6,1.58642875]
[1746945652228,0.10890966,2525.8,2524.7,0.03960272]
[1746945652461,0.10890966,2525.8,2524.6,1.58642875]
[1746945653234,0.10890966,2525.8,2524.8,8.0]
[1746945653428,3.065,2526.3,2525.0,0.0629]
[1746945653665,0.11076686,2526.2,2525.2,0.0629]
[1746945655036,3.065,2526.8,2525.2,0.0629]
[1746945655366,0.11185371,2526.7,2525.2,0.0629]
[1746945657292,0.11185371,2526.7,2525.6,0.0629]
[1746945657475,3.831,2527.6,2525.9,0.0629]
[1746945657677,3.62891687,2527.3,2526.0,3.063]
[1746945657889,3.95710498,2527.1,2525.9,0.0629]
[1746945658051,0.10541653,2527.0,2525.9,3.1259]
[1746945658256,4.06274827,2527.0,2525.9,3.1259]
[1746945658494,0.43632279,2526.9,2525.9,0.0629]
[1746945658790,0.10510292,2526.8,2525.9,0.0629]
[1746945659170,3.9569484,2527.2,2525.9,0.0629]
[1746945659365,0.10526689,2526.7,2525.9,0.0629]
[1746945659693,0.10521697,2526.6,2525.9,0.0629]
[1746945659889,3.95711004,2527.1,2525.9,0.0629]
[1746945660071,0.50155526,2527.0,2525.9,0.10248466]
[1746945660256,0.10584426,2527.0,2525.9,0.10248466]
[1746945660607,4.06312067,2527.0,2525.9,0.0629]
[1746945660754,0.10584426,2527.0,2525.9,0.0629]
[1746945661406,3.17084426,2527.0,2525.9,0.0629]
[1746945661606,3.065,2527.0,2525.9,0.0629]
[1746945661803,0.70873465,2526.9,2525.9,0.0629]
[1746945662360,0.09763465,2526.9,2525.9,0.0629]
[1746945663060,3.95757479,2526.8,2525.9,0.0629]
[1746945663258,0.09721389,2526.7,2525.9,0.0629]
[1746945663463,4.05498779,2526.7,2525.9,0.0629]
[1746945663887,0.09721389,2526.7,2525.9,0.0629]
[1746945664197,0.89844659,2526.7,2525.9,0.0629]
[1746945664611,0.09721389,2526.7,2525.9,0.0629]
[1746945664917,0.7867,2526.8,2525.9,0.0629]
[1746945665099,0.09705705,2526.6,2525.9,0.0629]
[1746945665304,3.95776558,2526.7,2525.9,0.0629]
[1746945665478,0.57150361,2526.6,2525.9,0.0629]
[1746945666883,4.5293985,2526.6,2525.9,0.0629]
[1746945667083,0.57150361,2526.6,2525.9,0.0629]
[1746945667505,4.52948014,2526.6,2525.9,0.0629]
[1746945668020,0.57150361,2526.6,2525.9,0.0629]
[1746945669116,4.52948198,2526.6,2525.9,0.0629]
[1746945669320,0.4529482,2526.5,2525.9,0.0629]
[1746945669523,4.52940642,2526.6,2525.9,0.0629]
[1746945669726,0.09643979,2526.4,2525.9,0.0629]
[1746945669882,0.09659666,2526.5,2525.9,0.0629]
[1746945670086,3.95875544,2526.1,2525.5,0.0629]
[1746945670281,0.09535073,2526.0,2525.5,0.0629]
[1746945670495,3.95853129,2526.2,2525.5,0.0629]
[1746945670782,0.49136077,2526.1,2525.5,0.0629]
[1746945670984,0.09550764,2526.1,2525.5,0.0629]
[1746945671184,0.47444656,2526.6,2525.5,0.0629]
[1746945671425,0.09613517,2526.5,2525.5,0.0629]
[1746945671732,3.95773142,2526.7,2525.5,0.0629]
[1746945671944,0.095639,2526.4,2525.5,0.0629]
[1746945672136,0.09595271,2526.6,2525.5,0.0629]
[1746945672310,0.09595271,2526.6,2525.2,8.0]
[1746945672311,0.09548212,2526.3,2525.7,0.0629]
[1746945672505,0.09579586,2526.5,2525.7,6.1659]
[1746945672722,7.0222975,2527.0,2525.8,0.03958818]
[1746945673033,3.95796869,2526.6,2525.9,0.0629]
[1746945673261,0.09615303,2526.5,2525.9,0.0629]
[1746945673904,3.95847302,2526.3,2525.6,3.1279]
[1746945674247,0.09587882,2526.2,2525.6,0.0629]
[1746945674895,3.065,2526.4,2525.6,0.0629]
[1746945675099,0.40253571,2526.3,2525.6,0.0629]
[1746945675499,0.09603571,2526.3,2525.6,0.0629]
[1746945676136,4.05443061,2526.3,2525.6,0.0629]
[1746945676557,0.09603571,2526.3,2525.6,0.0629]
[1746945677347,4.05440666,2526.3,2525.6,0.0629]
[1746945677737,0.09603571,2526.3,2525.6,0.0629]
[1746945677930,0.80796069,2526.3,2525.6,0.0629]
[1746945678321,0.09603571,2526.3,2525.6,0.0629]
[1746945679328,0.88273571,2526.3,2525.2,0.0629]
[1746945679523,3.95878163,2526.1,2525.2,0.0629]
[1746945679827,0.09519276,2526.0,2525.2,0.0629]
[1746945680051,3.62482557,2525.9,2524.5,0.0629]
[1746945680226,3.89576757,2525.8,2524.5,0.0629]
[1746945680438,3.62482557,2525.6,2524.5,0.0629]
[1746945680640,8.094408,2525.5,2524.5,0.0629]
[1746945680842,3.96096881,2524.7,2524.2,5.57426364]
[1746945681186,3.96128888,2524.5,2524.2,5.51136364]
[1746945681478,4.53820599,2524.4,2524.2,5.51136364]
[1746945681685,0.09268045,2524.4,2524.2,5.51136364]
[1746945681847,3.96008715,2525.2,2524.3,0.0629]
[1746945682063,4.05404922,2525.1,2524.3,0.0629]
[1746945682248,3.96039603,2525.0,2524.3,0.0629]
[1746945682565,0.09346589,2524.9,2524.3,0.0629]
[1746945682761,0.38503973,2524.9,2524.3,0.0629]
[1746945682966,0.29157384,2524.9,2524.3,0.0629]
[1746945683170,0.09330882,2524.8,2524.3,0.0629]
[1746945684176,3.96080308,2524.8,2524.3,0.0629]
[1746945684477,0.09315175,2524.7,2524.3,0.0629]
[1746945684678,3.96020969,2525.2,2524.3,0.0629]
[1746945684864,0.09377997,2525.1,2524.3,0.0629]
[1746945685174,0.86166149,2525.1,2524.3,0.0629]
[1746945685885,4.82194185,2525.1,2524.3,0.0629]
[1746945686047,0.86166149,2525.1,2524.3,0.0629]
[1746945686383,5.12056295,2525.1,2524.3,0.0629]
[1746945686682,1.16032275,2525.1,2524.3,0.0629]
[1746945686885,0.39244123,2525.1,2524.3,0.0629]
[1746945687070,3.96065222,2524.9,2524.3,0.0629]
[1746945687253,4.05409489,2524.8,2524.3,0.0629]
[1746945687454,0.09330882,2524.8,2524.3,0.0629]
[1746945687665,3.96064146,2524.9,2524.3,0.0629]
[1746945687955,3.96105775,2524.6,2524.2,5.51136364]
[1746945688496,4.05127838,2524.5,2524.2,5.51136364]
[1746945689145,0.09003214,2524.5,2524.2,5.51136364]
[1746945689344,4.05125045,2524.5,2524.2,5.51136364]
[1746945689554,0.09003214,2524.5,2524.2,5.51136364]
[1746945689758,1.01596799,2524.5,2524.2,5.51136364]
[1746945690250,4.97718052,2524.5,2524.2,5.51136364]
[1746945690450,1.01596799,2524.5,2524.2,5.51136364]
[1746945691044,5.33999427,2524.3,2524.2,2.68867194]
[1746945691243,3.96275014,2523.5,2523.4,5.85227273]
[1746945691487,10.15921059,2523.5,2523.4,5.85227273]
[1746945691782,0.08846045,2523.5,2523.4,5.85227273]
[1746945692164,0.30055358,2523.8,2523.4,5.85227273]
[1746945692481,4.51211323,2524.0,2523.4,5.85227273]
[1746945692790,0.08908928,2523.9,2523.4,5.85227273]
[1746945693485,0.08893209,2523.8,2523.4,5.85227273]
[1746945693683,0.38621878,2523.8,2523.4,5.85227273]
[1746945693884,0.08893209,2523.8,2523.4,5.85227273]
[1746945694088,6.9455,2524.1,2523.4,5.85227273]
[1746945694384,3.96275014,2523.5,2523.4,5.85227273]
[1746945694682,0.08846045,2523.5,2523.4,5.85227273]
[1746945694850,0.29984081,2523.8,2523.5,0.7884]
[1746945695046,0.08877489,2523.7,2523.5,0.7884]
[1746945695253,3.33593967,2524.1,2523.5,0.7884]
[1746945695490,0.08924645,2524.0,2523.5,0.7884]
[1746945697291,3.96221173,2523.9,2523.5,0.7884]
[1746945697499,4.80063565,2523.8,2523.4,5.85227273]
[1746945697704,0.0820501,2523.8,2523.4,5.85227273]
[1746945697906,3.96198543,2524.0,2523.4,5.85227273]
[1746945698111,3.33748401,2524.1,2523.4,6.64067273]
[1746945698112,0.08236835,2523.9,2523.4,6.64067273]
[1746945698280,3.33748401,2524.1,2523.4,6.64067273]
[1746945698281,3.9624061,2523.8,2523.4,6.64067273]
[1746945698503,0.08205396,2523.7,2523.4,6.64067273]
[1746945698804,3.9620014,2524.0,2523.4,6.64067273]
[1746945699005,0.08150303,2523.6,2523.4,6.64067273]
[1746945699202,3.33748401,2524.1,2523.4,6.64067273]
[1746945699376,0.08134581,2523.5,2523.4,6.64067273]
[1746945699581,14.252,2524.4,2523.4,7.30474]
[1746945699582,20.361,2524.4,2523.4,7.30474]
[1746945699781,0.08134581,2523.5,2523.4,6.64067273]
[1746945700015,3.96179842,2524.2,2523.4,6.64067273]
[1746945700312,3.96182537,2524.1,2523.4,6.64067273]
[1746945700509,3.9622791,2523.8,2523.4,5.85227273]
[1746945700711,0.08166024,2523.7,2523.4,5.85227273]
[1746945700913,3.96222894,2523.9,2523.4,5.85227273]
[1746945701092,0.08181744,2523.8,2523.4,5.85227273]
[1746945701615,3.9620046,2524.0,2523.4,5.85227273]
[1746945701814,0.08166024,2523.7,2523.4,5.85227273]
[1746945701984,3.96252097,2523.7,2523.4,5.85227273]
[1746945702183,0.08150303,2523.6,2523.4,5.85227273]
[1746945702596,3.96215856,2523.9,2523.4,5.85227273]
[1746945702788,0.08134581,2523.5,2523.4,5.85227273]
[1746945703293,3.9622899,2523.8,2523.4,5.85227273]
[1746945703493,0.08166024,2523.7,2523.4,5.85227273]
[1746945703704,3.96231716,2523.8,2523.4,5.85227273]
[1746945703908,4.04411425,2523.7,2523.4,5.85227273]
[1746945704228,0.08166024,2523.7,2523.4,5.85227273]
[1746945704525,3.96235068,2523.8,2523.4,5.85227273]
[1746945704725,0.08166024,2523.7,2523.4,5.85227273]
[1746945704883,3.6329517,2524.3,2523.4,5.85227273]
[1746945705086,3.9618394,2524.1,2523.4,5.85227273]
[1746945705284,0.08213181,2524.0,2523.4,5.85227273]
[1746945706129,4.04410288,2524.0,2523.4,5.85227273]
[1746945706502,0.08213181,2524.0,2523.4,5.85227273]
[1746945706820,3.96220784,2523.9,2523.4,5.85227273]
[1746945707032,0.08197463,2523.9,2523.4,5.85227273]
[1746945707388,3.96268196,2523.6,2523.4,5.85227273]
[1746945707623,3.96275014,2523.5,2523.4,5.85227273]
[1746945707826,4.04409595,2523.5,2523.4,5.85227273]
[1746945708201,7.08509595,2523.5,2523.4,5.85227273]
[1746945708952,15.63509595,2523.5,2523.4,5.85227273]
[1746945709150,18.80219595,2523.5,2523.4,5.85227273]
[1746945709655,4.75310681,2522.7,2522.6,6.19318182]
[1746945709840,10.93667537,2522.7,2522.6,6.19318182]
[1746945710041,11.49367537,2522.7,2522.6,6.19318182]
[1746945710336,26.04167537,2522.7,2522.6,6.19318182]
[1746945710547,19.93067537,2522.7,2522.6,6.19318182]
[1746945710724,26.26289443,2522.7,2522.6,6.19318182]
[1746945710907,20.14589443,2522.7,2522.6,6.19318182]
[1746945711449,26.26589443,2522.7,2522.6,6.19318182]
[1746945712010,0.50880775,2522.7,2522.6,6.18872865]
[1746945712200,3.96396442,2522.8,2522.6,6.18872865]
[1746945712400,3.045,2523.0,2522.6,6.18872865]
[1746945713151,0.7891,2523.4,2522.6,7.99987879]
[1746945713306,6.128,2523.5,2522.6,7.99987879]
[1746945714187,0.8156,2524.0,2522.7,0.7938]
[1746945714386,7.5944532,2524.3,2522.7,0.7938]
[1746945714594,10.09580418,2524.2,2522.8,0.7938]
[1746945714754,6.134,2524.2,2523.0,0.7938]
[1746945714941,3.6329517,2523.9,2522.7,0.7938]
[1746945715144,6.153,2524.0,2522.8,0.7938]
[1746945715484,3.9628457,2523.5,2522.8,0.7938]
[1746945715643,3.9626095,2523.6,2522.8,0.7938]
[1746945715843,3.9626095,2523.6,2522.8,1.67316788]
[1746945716386,3.96249356,2523.7,2522.8,1.67316788]
[1746945716689,3.96292577,2523.4,2522.8,1.67316788]
[1746945717041,6.156,2523.4,2522.8,0.7938]
[1746945717352,10.11892227,2523.4,2522.8,0.7938]
[1746945717542,6.156,2523.4,2522.8,0.7938]
[1746945717986,10.12142997,2523.8,2522.8,0.7938]
[1746945718186,3.96285116,2523.5,2522.8,0.7938]
[1746945718495,3.9630165,2523.4,2522.8,1.67316788]
[1746945718666,10.11868716,2523.6,2522.8,1.67316788]
[1746945718875,6.156,2523.6,2522.8,0.7938]
[1746945719174,3.96306424,2523.3,2522.8,0.7938]
[1746945719338,3.96339005,2523.1,2522.6,6.18872865]
[1746945719749,3.96365114,2523.0,2522.6,6.18872865]
[1746945720083,3.96400681,2522.7,2522.6,6.18872865]
[1746945720442,4.51400681,2522.7,2522.6,6.18872865]
[1746945720837,12.51400681,2522.7,2522.6,6.18872865]
[1746945721041,15.71530681,2522.7,2522.6,6.18872865]
[1746945721342,15.93053445,2522.7,2522.6,6.18872865]
[1746945721740,17.18548615,2522.7,2522.6,6.18872865]
[1746945721939,19.70853445,2522.7,2522.6,6.18872865]
[1746945723341,23.34148615,2522.7,2522.6,5.35542865]
[1746945723876,13.29786395,2522.6,2522.5,6.52020138]
[1746945724175,13.29786395,2522.6,2522.5,5.77160138]
[1746945724347,13.51309159,2522.6,2522.5,5.77160138]
[1746945724935,19.69109159,2522.6,2522.5,5.77160138]
[1746945725788,11.13909159,2522.6,2522.5,5.77160138]
[1746945726006,22.77204329,2522.6,2522.5,5.77160138]
[1746945726193,23.32204329,2522.6,2522.5,5.77160138]
[1746945726497,23.32604329,2522.6,2522.5,5.77160138]
[1746945726792,13.29880705,2522.0,2521.9,6.53409091]
[1746945726970,37.38175875,2522.0,2521.9,6.53409091]
[1746945727142,28.83175875,2522.0,2521.9,6.53409091]
[1746945727341,24.41510705,2522.0,2521.9,6.53409091]
[1746945727885,32.96510705,2522.0,2521.9,6.53409091]
[1746945728460,33.1793347,2522.0,2521.9,6.53409091]
[1746945729079,26.4463347,2522.0,2521.9,6.53409091]
[1746945729442,36.2582864,2522.0,2521.9,6.53409091]
[1746945729642,36.04405875,2522.0,2521.9,6.53409091]
[1746945730383,36.59405875,2522.0,2521.9,6.53409091]
[1746945730944,36.60205875,2522.0,2521.9,6.53409091]
[1746945731659,37.63120391,2522.0,2521.9,6.53409091]
[1746945732193,37.41705875,2522.0,2521.9,6.53409091]
[1746945732428,40.00919092,2522.0,2521.9,6.53409091]
[1746945732639,6.54909,2521.4,2521.1,6.0417]
[1746945732928,6.54909,2521.4,2520.0,10.005]
[1746945732929,14.89562418,2520.4,2520.0,10.005]
[1746945733225,31.51826089,2520.4,2520.3,7.11590909]
[1746945733374,29.14126089,2520.4,2520.3,7.11590909]
[1746945733579,7.60057588,2520.4,2520.3,7.11590909]
[1746945733837,22.03057588,2520.4,2520.3,7.11590909]
[1746945733979,22.33076263,2520.4,2520.3,7.11590909]
[1746945734174,23.88532994,2520.4,2520.3,7.11590909]
[1746945734417,26.27532994,2520.4,2520.3,7.11590909]
[1746945734616,3.96888394,2519.6,2519.5,7.55681818]
[1746945734918,3.96888394,2519.6,2518.8,7.89772727]
[1746945734919,3.96998689,2518.9,2518.8,7.89772727]
[1746945735120,14.79293859,2518.9,2518.8,7.89772727]
[1746945735321,4.17195696,2518.9,2518.8,7.89772727]
[1746945735516,3.96922091,2519.4,2518.8,7.89772727]
[1746945735815,3.96866119,2519.8,2518.9,0.7733]
[1746945736142,3.6329517,2520.5,2519.2,0.7733]
[1746945736277,0.30187637,2520.6,2519.2,0.7733]
[1746945736479,3.6329517,2520.9,2519.2,0.7733]
[1746945736698,3.96636522,2521.2,2519.4,0.7733]
[1746945736898,3.96793905,2520.2,2520.1,0.005]